bitfinex-derivatives/quotes_SOLF0:USTF0_20250609
["timestamp","ask_amount","ask_price","bid_price","bid_amount"]
[1749439079309,14.79873174,151.5,151.49,0.04489749]
[1749439079508,19.00695414,151.5,151.49,0.04489749]
[1749439080915,18.98277982,151.5,151.49,0.04489749]
[1749439081313,14.78508838,151.5,151.49,0.04489749]
[1749439081516,18.98281403,151.5,151.49,0.04489749]
[1749439082416,18.98393093,151.5,151.49,0.04489749]
[1749439082615,18.98413057,151.5,151.49,0.04489749]
[1749439082807,18.98405051,151.5,151.49,0.04489749]
[1749439084118,14.78508838,151.5,151.49,0.04489749]
[1749439084516,18.99327562,151.5,151.49,0.04489749]
[1749439084706,18.99328286,151.5,151.49,0.04489749]
[1749439084911,18.99330236,151.5,151.49,0.04489749]
[1749439085614,18.99271346,151.5,151.49,0.04489749]
[1749439085917,18.99264085,151.5,151.49,0.04489749]
[1749439086319,18.99486109,151.5,151.49,0.04489749]
[1749439086511,12.04944523,151.5,151.49,0.04489749]
[1749439086711,9.66194026,151.5,151.49,0.04489749]
[1749439086908,9.66194026,151.5,151.49,2.78054064]
[1749439087611,9.66258441,151.5,151.49,2.78054064]
[1749439087817,5.45204523,151.5,151.49,2.78054064]
[1749439088414,9.6621934,151.5,151.49,2.78054064]
[1749439088816,9.6621934,151.5,151.49,36.14054064]
[1749439089121,9.6621934,151.5,151.49,42.73834064]
[1749439089527,9.66326175,151.5,151.49,42.73834064]
[1749439089824,9.6633582,151.5,151.49,42.73834064]
[1749439090020,5.45204523,151.5,151.49,42.73834064]
[1749439090319,9.66345369,151.5,151.49,42.73834064]
[1749439091019,9.66240461,151.5,151.49,42.73834064]
[1749439091226,9.66254875,151.5,151.49,42.73834064]
[1749439091424,5.45204523,151.5,151.49,42.73834064]
[1749439091624,9.66253309,151.5,151.49,42.73834064]
[1749439091924,9.66246813,151.5,151.49,42.73834064]
[1749439092330,9.66261336,151.5,151.49,42.73834064]
[1749439092727,9.66230182,151.5,151.49,42.73834064]
[1749439093025,5.45204523,151.5,151.49,42.73834064]
[1749439093330,9.66210234,151.5,151.49,42.73834064]
[1749439093832,9.6617044,151.5,151.49,42.73834064]
[1749439094828,9.6617757,151.5,151.49,42.73834064]
[1749439095023,9.66218183,151.5,151.49,42.73834064]
[1749439095331,0.0463127,151.52,151.51,6.5969]
[1749439095526,4.25757218,151.52,151.51,9.33254315]
[1749439095731,4.25753698,151.52,151.51,9.33254315]
[1749439096132,0.0463127,151.52,151.51,9.33254315]
[1749439096529,4.2694803,151.52,151.51,9.33254315]
[1749439096730,0.0463127,151.52,151.51,9.33254315]
[1749439097029,4.26957737,151.52,151.51,9.33254315]
[1749439097332,0.0463127,151.52,151.51,9.33254315]
[1749439105739,42.22206054,151.59,151.51,2.73564315]
[1749439105935,4.24158424,151.58,151.55,2.73564315]
[1749439106239,4.24158424,151.57,151.56,6.5948]
[1749439106539,4.24260802,151.57,151.56,2.73564315]
[1749439106835,4.3824,151.6,151.56,2.73564315]
[1749439106836,0.04738925,151.58,151.57,6.5943]
[1749439107037,0.04738925,151.58,151.57,9.32994315]
[1749439107240,9.74056459,151.58,151.57,9.32994315]
[1749439107539,9.74060529,151.58,151.57,9.32994315]
[1749439108239,5.49816379,151.58,151.57,9.32994315]
[1749439109139,0.04738925,151.58,151.57,9.32994315]
[1749439109941,0.04738925,151.58,151.57,42.68994315]
[1749439113338,6.5919,151.63,151.61,2.73564315]
[1749439113538,5.45422338,151.62,151.61,2.73564315]
[1749439114338,5.50231118,151.63,151.61,9.32824315]
[1749439114542,0.0480878,151.63,151.62,2.73564315]
[1749439114939,5.50231118,151.63,151.6,0.04468828]
[1749439115140,8.23795433,151.63,151.6,2.78033143]
[1749439115341,2.78373095,151.63,151.6,2.78033143]
[1749439115543,6.5925,151.62,151.6,2.78033143]
[1749439115741,2.78373095,151.63,151.6,2.78033143]
[1749439115945,0.0480878,151.63,151.6,2.78033143]
[1749439116243,0.0480878,151.63,151.62,2.73564315]
[1749439117136,0.0480878,151.63,151.62,9.32774315]
[1749439119346,0.0480878,151.63,151.62,10.85929635]
[1749439121649,0.0480878,151.63,151.61,33.3]
[1749439122239,6.5921,151.62,151.61,33.3]
[1749439122648,6.5921,151.62,151.6,0.04468828]
[1749439124153,6.5926,151.61,151.6,0.04468828]
[1749439125151,6.5944,151.57,151.55,33.28]
[1749439125351,6.5944,151.57,151.55,37.54719635]
[1749439125960,6.5939,151.58,151.55,37.54719635]
[1749439126254,0.04562786,151.58,151.55,37.59104258]
[1749439126658,6.63962786,151.58,151.55,37.59104258]
[1749439126951,0.04562786,151.58,151.55,37.59104258]
[1749439128056,0.04562786,151.58,151.55,44.18594258]
[1749439128262,0.04562786,151.58,151.55,37.59104258]
[1749439129149,0.04562786,151.58,151.56,6.5944]
[1749439129746,0.04562786,151.58,151.57,4.26719635]
[1749439130355,6.63952786,151.58,151.55,44.18604258]
[1749439130656,6.63952786,151.58,151.56,6.5947]
[1749439130956,0.04562786,151.58,151.56,6.5947]
[1749439131460,0.04562786,151.58,151.57,6.5943]
[1749439131959,0.04562786,151.58,151.56,6.5946]
[1749439132459,6.63952786,151.58,151.55,44.18614258]
[1749439133864,0.04562786,151.58,151.57,6.5943]
[1749439134259,0.04562786,151.58,151.55,33.32384623]
[1749439134459,0.04562786,151.58,151.55,37.59104258]
[1749439134959,0.04562786,151.58,151.55,44.18604258]
[1749439135557,0.04562786,151.58,151.55,37.59104258]
[1749439135748,0.04562786,151.58,151.55,33.32384623]
[1749439136159,6.5948,151.56,151.55,33.32384623]
[1749439137856,6.5945,151.57,151.55,33.32384623]
[1749439138060,6.5945,151.57,151.55,0.04384623]
[1749439139661,12.0522384,151.57,151.55,0.04384623]
[1749439140053,6.5945,151.57,151.55,0.04384623]
[1749439140259,5.49826512,151.58,151.55,0.04384623]
[1749439140659,5.45263726,151.57,151.44,379.88]
[1749439140857,4.26719635,151.55,151.47,4.26719635]
[1749439141157,5.45263726,151.54,151.47,4.26719635]
[1749439141465,5.45263726,151.53,151.47,4.26719635]
[1749439141669,5.45263726,151.54,151.45,33.3]
[1749439141864,0.04944796,151.52,151.48,4.30916666]
[1749439142059,6.64614796,151.52,151.49,6.5976]
[1749439142561,0.04944796,151.52,151.51,6.5969]
[1749439144463,0.04944796,151.52,151.5,10.86439635]
[1749439144663,0.04944796,151.52,151.5,4.26719635]
[1749439144963,0.04944796,151.52,151.5,6.5972]
[1749439145167,0.04944796,151.52,151.49,33.3]
[1749439145463,6.64614796,151.52,151.49,39.8975]
[1749439145662,0.04944796,151.52,151.49,33.3]
[1749439146662,0.04944796,151.52,151.51,6.5969]
[1749439146862,0.04944796,151.52,151.49,33.3]
[1749439147254,0.04944796,151.52,151.5,6.5972]
[1749439148263,6.64594796,151.52,151.49,33.3]
[1749439148765,0.04944796,151.52,151.49,33.3]
[1749439149166,0.04944796,151.52,151.5,6.5973]
[1749439149862,6.64604796,151.52,151.5,6.5973]
[1749439150470,6.64604796,151.52,151.49,39.8976]
[1749439150773,0.04944796,151.52,151.49,33.3]
[1749439150972,5.48308918,151.52,151.48,0.04197031]
[1749439151365,0.04944796,151.52,151.48,0.04197031]
[1749439151770,5.48308918,151.52,151.48,0.04197031]
[1749439152367,0.04944796,151.52,151.48,0.04197031]
[1749439152572,6.5972,151.51,151.48,0.04197031]
[1749439152967,0.04944796,151.52,151.48,0.04197031]
[1749439153770,6.5976,151.5,151.48,0.04197031]
[1749439154274,6.5971,151.51,151.48,6.64017031]
[1749439155265,6.64614796,151.52,151.48,0.04197031]
[1749439155472,0.04944796,151.52,151.49,4.26719635]
[1749439155877,0.04944796,151.52,151.5,33.26]
[1749439156077,0.04944796,151.52,151.51,6.5969]
[1749439173993,0.04944796,151.52,151.5,39.8572]
[1749439174196,6.5969,151.51,151.5,33.26]
[1749439174494,5.45497992,151.51,151.48,6.63997031]
[1749439174692,0.04944796,151.52,151.48,6.63997031]
[1749439174994,12.05209268,151.51,151.48,6.63997031]
[1749439175197,6.5972,151.51,151.48,6.63997031]
[1749439175403,12.05778502,151.5,151.48,0.04197031]
[1749439175594,6.5974,151.5,151.48,0.04197031]
[1749439175892,0.04944796,151.52,151.48,0.04197031]
[1749439176092,5.46094481,151.51,151.48,0.04197031]
[1749439176298,5.46094481,151.5,151.48,6.63997031]
[1749439176487,6.5972,151.51,151.48,6.63997031]
[1749439176686,5.46314613,151.5,151.48,6.63997031]
[1749439176892,5.46294482,151.49,151.48,6.63997031]
[1749439177100,6.5972,151.51,151.48,6.63997031]
[1749439177395,12.05971226,151.5,151.48,0.04197031]
[1749439177600,9.72950861,151.49,151.48,0.04197031]
[1749439177989,20.57462306,151.49,151.48,0.04197031]
[1749439178501,16.32730861,151.49,151.48,0.04197031]
[1749439178800,20.5720795,151.49,151.48,0.04197031]
[1749439179000,16.32730861,151.49,151.48,0.04197031]
[1749439179201,20.57746137,151.49,151.48,0.04197031]
[1749439179397,20.57746376,151.49,151.48,0.04197031]
[1749439179802,20.55505217,151.49,151.48,0.04197031]
[1749439181202,20.55980221,151.49,151.48,0.04197031]
[1749439181400,20.55980459,151.49,151.48,0.04197031]
[1749439181600,9.72950861,151.49,151.48,0.04197031]
[1749439181803,13.96190321,151.49,151.48,0.04197031]
[1749439182301,20.55970321,151.49,151.48,0.04197031]
[1749439182797,16.32730861,151.49,151.48,0.04197031]
[1749439182993,12.06011226,151.49,151.48,0.04197031]
[1749439183196,5.46231226,151.49,151.48,0.04197031]
[1749439184601,5.46231226,151.49,151.48,6.64017031]
[1749439185805,5.46231226,151.49,151.48,0.04197031]
[1749439192909,12.06011226,151.49,151.48,0.04197031]
[1749439197610,16.28680012,151.49,151.48,0.04197031]
[1749439197817,9.68908185,151.49,151.48,0.04197031]
[1749439198209,9.68904183,151.49,151.48,0.04197031]
[1749439198604,12.06011226,151.49,151.48,0.04197031]
[1749439198809,16.28683921,151.49,151.48,0.04197031]
[1749439199011,16.28692398,151.49,151.48,0.04197031]
[1749439199214,12.06011226,151.49,151.48,0.04197031]
[1749439199908,16.28623377,151.49,151.48,0.04197031]
[1749439200111,12.06011226,151.49,151.48,0.04197031]
[1749439200312,16.28619376,151.49,151.48,0.04197031]
[1749439200510,12.06011226,151.49,151.48,0.04197031]
[1749439200816,16.28138355,151.49,151.48,0.04197031]
[1749439201014,16.28138324,151.49,151.48,0.04197031]
[1749439201212,12.04513294,151.49,151.48,0.04197031]
[1749439202114,6.5988,151.47,151.44,39.8198]
[1749439202909,6.64866404,151.47,151.44,39.85578859]
[1749439203916,0.04986404,151.47,151.45,6.5994]
[1749439204116,0.04986404,151.47,151.44,33.25598859]
[1749439204312,0.04986404,151.47,151.45,4.26719635]
[1749439204613,0.04986404,151.47,151.46,6.5991]
[1749439208415,5.50640719,151.47,151.46,6.5991]
[1749439209613,0.04986404,151.47,151.46,6.5991]
[1749439210119,0.04986404,151.47,151.45,6.5995]
[1749439210315,0.04986404,151.47,151.44,33.25598859]
[1749439210512,5.45978927,151.46,151.44,0.03598859]
[1749439210711,5.45978927,151.45,151.44,0.03598859]
[1749439211511,12.05928927,151.45,151.44,0.03598859]
[1749439213109,5.45978927,151.45,151.44,0.03598859]
[1749439215110,16.3003095,151.45,151.44,0.03598859]
[1749439215517,12.05928927,151.45,151.44,0.03598859]
[1749439216315,16.27970114,151.45,151.44,0.03598859]
[1749439216923,16.27960402,151.45,151.44,0.03598859]
[1749439217122,16.27960393,151.45,151.44,0.03598859]
[1749439217623,5.45978927,151.45,151.44,0.03598859]
[1749439219027,5.45978927,151.45,151.44,6.63598859]
[1749439220326,5.45978927,151.45,151.44,0.03598859]
[1749439222826,5.45978927,151.45,151.44,6.63598859]
[1749439223027,5.45978927,151.45,151.44,10.90318494]
[1749439225722,5.45978927,151.45,151.44,0.03598859]
[1749439226326,9.67410408,151.45,151.44,0.03598859]
[1749439226722,5.45978927,151.45,151.44,0.03598859]
[1749439226921,9.67509622,151.45,151.44,0.03598859]
[1749439227126,9.67546737,151.45,151.44,0.03598859]
[1749439227628,9.67580527,151.45,151.44,0.03598859]
[1749439227831,16.27530527,151.45,151.44,0.03598859]
[1749439228023,12.05928927,151.45,151.44,0.03598859]
[1749439228725,16.27784024,151.45,151.44,0.03598859]
[1749439230130,16.27239817,151.45,151.44,0.03598859]
[1749439230425,16.27239817,151.45,151.39,33.2]
[1749439230426,13.93896826,151.45,151.39,33.2]
[1749439230625,15.80315896,151.44,151.39,33.2]
[1749439230823,5.45978927,151.43,151.39,33.2]
[1749439231022,5.45978927,151.42,151.39,33.2]
[1749439231231,5.45978927,151.41,151.39,33.2]
[1749439231434,6.65036975,151.42,151.39,39.8019]
[1749439231730,5.47138657,151.41,151.39,39.8019]
[1749439231930,6.65036975,151.42,151.39,39.8019]
[1749439232131,5.47135441,151.41,151.39,39.8019]
[1749439232328,6.65036975,151.42,151.39,39.8019]
[1749439232526,5.47004358,151.41,151.39,39.8019]
[1749439232726,6.65036975,151.42,151.39,39.8019]
[1749439232933,5.47007506,151.41,151.39,39.8019]
[1749439233126,6.65036975,151.42,151.39,39.8019]
[1749439233325,13.94756612,151.41,151.36,33.2]
[1749439233630,9.72886633,151.4,151.36,33.2]
[1749439233830,5.47003963,151.39,151.37,6.6029]
[1749439234031,5.47003963,151.38,151.37,6.6029]
[1749439234232,5.47003963,151.38,151.36,33.2]
[1749439234531,6.65059656,151.4,151.36,39.8032]
[1749439234727,5.4539755,151.39,151.36,39.8032]
[1749439235028,5.4539755,151.38,151.36,39.8032]
[1749439235229,6.65059656,151.4,151.36,39.8032]
[1749439235432,5.46406585,151.39,151.36,39.8032]
[1749439235632,5.46406585,151.38,151.36,39.8032]
[1749439235834,6.65059656,151.4,151.36,39.8032]
[1749439236030,12.06372277,151.39,151.36,39.8032]
[1749439236231,5.46152277,151.38,151.36,39.8032]
[1749439236533,6.6022,151.39,151.36,33.2]
[1749439236534,6.6024,151.39,151.36,33.2]
[1749439236729,5.45892047,151.38,151.36,33.2]
[1749439236931,0.04849656,151.4,151.36,33.2]
[1749439237130,5.45838622,151.39,151.36,33.2]
[1749439237329,5.45838622,151.38,151.37,6.6027]
[1749439237531,5.45838622,151.39,151.37,6.6027]
[1749439237730,5.45838622,151.38,151.37,6.6027]
[1749439238037,5.45838622,151.39,151.37,6.6027]
[1749439238336,5.45838622,151.38,151.36,39.8033]
[1749439238529,12.04909921,151.39,151.36,39.8033]
[1749439238732,6.6023,151.39,151.36,39.8033]
[1749439239436,12.04467207,151.39,151.36,33.2]
[1749439240137,12.04467207,151.39,151.36,39.8034]
[1749439240728,12.04467207,151.39,151.36,33.2]
[1749439240933,6.6027,151.38,151.36,33.2]
[1749439244541,12.0411165,151.39,151.36,39.8034]
[1749439244742,5.4388165,151.39,151.36,33.2]
[1749439244943,5.48731306,151.4,151.36,33.2]
[1749439245248,6.6026,151.38,151.36,33.2]
[1749439246141,6.603,151.37,151.36,33.2]
[1749439246537,6.603,151.37,151.33,33.16]
[1749439246841,6.64751623,151.37,151.33,33.16]
[1749439247044,6.64751623,151.37,151.34,6.604]
[1749439247837,6.6035,151.36,151.33,39.7646]
[1749439249342,10.91491258,151.37,151.33,39.7646]
[1749439249544,4.31171258,151.37,151.33,33.16]
[1749439250552,9.73981271,151.37,151.33,33.16]
[1749439250851,4.31171258,151.37,151.33,33.16]
[1749439251053,6.6036,151.36,151.33,33.16]
[1749439251247,5.4257987,151.36,151.33,33.16]
[1749439251445,6.6042,151.35,151.33,33.16]
[1749439251943,6.6042,151.35,151.32,6.6051]
[1749439254653,4.26719635,151.35,151.3,35.90723823]
[1749439255247,4.26719635,151.33,151.3,35.90723823]
[1749439255452,4.31494643,151.33,151.3,35.90723823]
[1749439255652,6.6054,151.32,151.3,35.90723823]
[1749439256352,4.31494643,151.33,151.3,35.90723823]
[1749439256353,6.6056,151.31,151.3,2.74723823]
[1749439256947,6.6069,151.29,151.27,33.18]
[1749439257250,10.87409635,151.29,151.27,33.18]
[1749439257450,4.26719635,151.29,151.27,33.18]
[1749439257847,10.87389635,151.29,151.27,33.18]
[1749439258244,4.26719635,151.29,151.23,33.18]
[1749439259051,4.26719635,151.29,151.26,6.6076]
[1749439259849,4.26719635,151.29,151.23,33.18]
[1749439260457,4.26719635,151.29,151.26,6.6077]
[1749439260657,4.26719635,151.29,151.23,33.18]
[1749439260858,4.26719635,151.29,151.23,35.3209]
[1749439261059,4.26719635,151.29,151.27,6.6072]
[1749439262259,4.26719635,151.29,151.23,35.3209]
[1749439262759,4.31585325,151.3,151.28,6.6069]
[1749439262949,0.0486569,151.3,151.26,4.26719635]
[1749439263349,0.0486569,151.3,151.24,4.26719635]
[1749439264152,0.0486569,151.3,151.23,35.3209]
[1749439264153,6.6551569,151.3,151.27,6.607]
[1749439264352,0.0486569,151.3,151.23,39.58809635]
[1749439264960,0.0486569,151.3,151.27,4.26719635]
[1749439265162,0.0486569,151.3,151.28,33.18]
[1749439265358,0.0486569,151.3,151.29,10.87369635]
[1749439266763,0.0486569,151.3,151.29,6.6065]
[1749439267560,0.0486569,151.3,151.23,2.1409]
[1749439267862,0.0486569,151.3,151.25,33.16]
[1749439268358,0.0486569,151.3,151.26,6.6075]
[1749439268559,0.0486569,151.3,151.25,33.16]
[1749439268960,4.26719635,151.29,151.25,33.16]
[1749439269161,6.607,151.28,151.25,33.16]
[1749439272265,10.87399635,151.29,151.25,33.16]
[1749439273168,4.26719635,151.29,151.25,39.7679]
[1749439274068,6.6072,151.28,151.25,33.16]
[1749439275166,6.6072,151.28,151.24,6.6086]
[1749439275769,6.6076,151.27,151.24,6.6086]
[1749439276472,6.6072,151.28,151.24,6.6086]
[1749439277370,6.6072,151.28,151.25,6.6081]
[1749439277863,6.6074,151.27,151.23,2.1409]
[1749439278675,6.6072,151.28,151.24,6.6084]
[1749439279167,6.6074,151.27,151.24,6.6084]
[1749439284275,6.6074,151.27,151.24,6.6086]
[1749439284477,6.6073,151.28,151.23,2.1409]
[1749439284678,6.6073,151.28,151.24,4.26719635]
[1749439285178,5.39169486,151.29,151.16,33.16]
[1749439285179,5.39169486,151.27,151.16,33.16]
[1749439285384,0.04588602,151.23,151.2,4.26719635]
[1749439285580,0.04588602,151.23,151.22,6.6096]
[1749439285781,0.04588602,151.23,151.22,13.84542092]
[1749439286179,0.04588602,151.23,151.22,13.84523713]
[1749439286579,0.04588602,151.23,151.22,7.2379604]
[1749439287082,0.04588602,151.23,151.22,9.5804346]
[1749439287278,0.04588602,151.23,151.22,6.6096]
[1749439287888,0.04588602,151.23,151.21,33.16]
[1749439288482,0.04588602,151.23,151.21,39.7699]
[1749439289689,0.04588602,151.23,151.22,6.6096]
[1749439290483,0.04588602,151.23,151.14,1.15090783]
[1749439290684,0.04588602,151.23,151.16,4.26719635]
[1749439290877,0.04362167,151.21,151.16,4.26719635]
[1749439291582,0.04362167,151.21,151.18,6.6111]
[1749439291786,4.31081802,151.21,151.19,33.16]
[1749439291987,4.26719635,151.21,151.17,33.16]
[1749439292181,5.38799873,151.21,151.18,33.16]
[1749439293589,6.6105,151.2,151.18,33.16]
[1749439293987,5.38799873,151.21,151.18,33.16]
[1749439294288,11.99829873,151.21,151.18,39.7713]
[1749439294590,6.6103,151.21,151.18,33.16]
[1749439294891,5.36431189,151.21,151.18,33.16]
[1749439295188,5.36451832,151.21,151.18,33.16]
[1749439295393,9.63171467,151.21,151.18,39.7711]
[1749439295580,4.26719635,151.21,151.18,39.7711]
[1749439295785,4.26719635,151.21,151.18,6.6111]
[1749439295991,4.26719635,151.21,151.19,33.16]
[1749439296292,4.26719635,151.21,151.2,33.16]
[1749439297293,9.6441161,151.21,151.2,33.16]
[1749439297490,16.2541161,151.21,151.2,33.16]
[1749439297791,9.6441161,151.21,151.2,33.62]
[1749439297983,4.26719635,151.21,151.2,33.62]
[1749439298190,10.87719635,151.21,151.2,33.62]
[1749439298393,16.2541161,151.21,151.2,33.62]
[1749439298886,16.2541161,151.21,151.17,6.6116]
[1749439298887,9.6441161,151.21,151.14,4.3217]
[1749439299094,4.26719635,151.19,151.15,33.62]
[1749439299288,4.26719635,151.2,151.13,33.62]
[1749439299596,5.37615196,151.21,151.13,33.62]
[1749439299597,4.26719635,151.17,151.13,33.62]
[1749439299796,4.26719635,151.17,151.14,6.613]
[1749439299995,4.26719635,151.17,151.13,33.62]
[1749439300195,0.04578225,151.18,151.16,6.612]
[1749439300392,0.04578225,151.18,151.14,4.26719635]
[1749439300393,0.04578225,151.18,151.17,33.62]
[1749439303099,0.04578225,151.18,151.15,33.62]
[1749439303400,0.04578225,151.18,151.16,33.64]
[1749439303598,0.04578225,151.18,151.17,33.64]
[1749439304098,6.6093,151.23,151.17,37.90719635]
[1749439304600,6.6093,151.23,151.19,6.6106]
[1749439304797,6.6093,151.23,151.17,37.90719635]
[1749439304995,6.52679635,151.25,151.17,37.90719635]
[1749439305200,0.04935883,151.23,151.19,6.65275929]
[1749439305594,4.31655518,151.23,151.19,0.04215929]
[1749439305794,9.73400875,151.23,151.19,0.04215929]
[1749439306002,0.04935883,151.23,151.19,0.04215929]
[1749439306200,6.65855883,151.23,151.19,0.04215929]
[1749439306502,0.04935883,151.23,151.19,0.04215929]
[1749439306796,0.04935883,151.23,151.2,6.6102]
[1749439307006,0.04935883,151.23,151.21,33.64]
[1749439307499,6.65875883,151.23,151.21,33.64]
[1749439308204,0.04935883,151.23,151.21,33.64]
[1749439308701,6.65845883,151.23,151.21,33.64]
[1749439309501,0.04935883,151.23,151.21,33.64]
[1749439310799,0.04935883,151.23,151.21,40.25]
[1749439311302,0.04935883,151.23,151.21,33.64]
[1749439312105,0.04935883,151.23,151.21,40.25]
[1749439313004,5.48655721,151.23,151.21,40.25]
[1749439313205,5.48655721,151.23,151.21,33.64]
[1749439313408,4.26719635,151.22,151.1,1.15117433]
[1749439313609,9.70439473,151.22,151.15,4.26719635]
[1749439313808,5.43719838,151.21,151.16,33.62]
[1749439314008,6.6104,151.21,151.17,33.62]
[1749439314408,6.65896358,151.21,151.17,33.62]
[1749439314608,6.6106,151.2,151.17,40.2315]
[1749439316105,6.65866358,151.21,151.18,6.6113]
[1749439316408,0.04856358,151.21,151.18,4.26719635]
[1749439317409,0.04856358,151.21,151.19,6.6109]
[1749439318514,0.04856358,151.21,151.18,4.26719635]
[1749439319716,0.04856358,151.21,151.2,6.6105]
[1749439320708,0.04856358,151.21,151.19,6.6107]
[1749439320913,0.04856358,151.21,151.18,4.26719635]
[1749439321412,0.04856358,151.21,151.2,6.6105]
[1749439322906,0.04856358,151.21,151.2,33.62]
[1749439323109,5.49555593,151.21,151.2,33.62]
[1749439323408,0.04856358,151.21,151.2,33.62]
[1749439323715,12.10585593,151.21,151.2,33.62]
[1749439325006,5.49555593,151.21,151.2,33.62]
[1749439325409,12.10555593,151.21,151.2,33.62]
[1749439326218,12.11117579,151.21,151.2,33.62]
[1749439326516,5.50117579,151.21,151.2,33.62]
[1749439326917,0.04856358,151.21,151.2,33.62]
[1749439327312,5.50238775,151.21,151.2,33.62]
[1749439329521,12.11248775,151.21,151.18,6.6111]
[1749439329721,6.65866358,151.21,151.19,33.56]
[1749439329921,0.04856358,151.21,151.19,33.56]
[1749439330322,0.04856358,151.21,151.19,40.1705]
[1749439330821,0.04856358,151.21,151.2,6.6105]
[1749439331023,5.50814339,151.21,151.19,33.56]
[1749439331222,0.04856358,151.21,151.19,33.56]
[1749439332024,0.04856358,151.21,151.19,40.1706]
[1749439332223,5.46125112,151.2,151.19,33.56]
[1749439332621,12.07175112,151.2,151.19,33.56]
[1749439332827,9.72844747,151.2,151.19,33.56]
[1749439333022,9.72844747,151.2,151.18,33.56]
[1749439333218,6.6118,151.17,151.16,380.82]
[1749439333421,12.07305112,151.17,151.16,414.38]
[1749439337126,12.07305112,151.17,151.16,380.82]
[1749439337326,12.07305112,151.17,151.16,414.38]
[1749439341434,12.07305112,151.17,151.16,380.82]
[1749439341935,12.07305112,151.17,151.16,414.38]
[1749439344038,12.07305112,151.17,151.16,33.56]
[1749439346445,5.46125112,151.17,151.16,33.56]
[1749439347041,12.07305112,151.17,151.16,33.56]
[1749439347945,5.46125112,151.17,151.16,33.56]
[1749439349442,12.07305112,151.17,151.16,33.56]
[1749439349646,5.46125112,151.17,151.16,33.56]
[1749439350252,5.4385197,151.2,151.16,33.56]
[1749439350442,5.43917476,151.19,151.17,6.6114]
[1749439350744,0.04856358,151.21,151.16,33.56]
[1749439350941,5.43893335,151.2,151.16,33.56]
[1749439351141,5.43893335,151.19,151.16,33.56]
[1749439351342,0.04856358,151.21,151.16,33.56]
[1749439351544,5.43891211,151.2,151.16,33.56]
[1749439351737,5.43891211,151.19,151.16,33.56]
[1749439351939,5.43891211,151.18,151.16,33.56]
[1749439352136,0.04856358,151.21,151.16,33.56]
[1749439352339,12.04931017,151.2,151.16,40.1719]
[1749439352635,5.43871017,151.19,151.16,40.1719]
[1749439352835,6.6106,151.2,151.16,40.1719]
[1749439353146,12.05003375,151.19,151.16,40.1719]
[1749439353444,6.611,151.19,151.16,40.1719]
[1749439354043,6.6108,151.2,151.16,40.1719]
[1749439354246,5.43954851,151.19,151.16,40.1719]
[1749439354444,5.43954851,151.18,151.16,40.1719]
[1749439354742,6.611,151.19,151.16,40.1719]
[1749439354943,5.4461124,151.18,151.16,33.56]
[1749439355144,6.611,151.19,151.16,33.56]
[1749439355344,12.05757674,151.18,151.15,10.87969635]
[1749439355544,6.6115,151.18,151.16,33.56]
[1749439355844,6.15326315,151.21,151.12,4.4929]
[1749439355845,4.26719635,151.2,151.12,8.76009635]
[1749439356041,4.31072155,151.18,151.13,33.56]
[1749439356343,5.44598012,151.17,151.13,33.56]
[1749439356544,5.44598012,151.16,151.13,40.1733]
[1749439356745,4.31072155,151.18,151.13,40.1733]
[1749439356949,6.6123,151.16,151.13,40.1733]
[1749439357242,5.4443006,151.15,151.13,40.1733]
[1749439357447,6.6123,151.16,151.13,40.1733]
[1749439357644,5.44394189,151.15,151.13,40.1733]
[1749439357844,5.44394189,151.14,151.13,40.1733]
[1749439358243,5.44394189,151.14,151.13,33.56]
[1749439359551,6.6126,151.16,151.13,40.1735]
[1749439359849,5.429691,151.15,151.13,40.1735]
[1749439360051,6.6126,151.16,151.13,40.1735]
[1749439360251,5.42966614,151.15,151.13,40.1735]
[1749439360453,5.42966614,151.14,151.13,33.56]
[1749439361855,5.42966614,151.14,151.13,33.58]
[1749439362850,5.42966614,151.14,151.12,6.6139]
[1749439363054,0.04500925,151.15,151.13,33.58]
[1749439363258,5.42812495,151.14,151.13,33.58]
[1749439364349,5.42812495,151.14,151.13,40.1935]
[1749439366549,5.42812495,151.14,151.13,33.58]
[1749439367357,5.42812495,151.14,151.12,6.6138]
[1749439367555,6.65770925,151.15,151.13,33.58]
[1749439367750,0.04500925,151.15,151.13,40.1935]
[1749439367946,5.43096683,151.14,151.13,33.58]